[Event "FRA-ch Teams Top 16-A 2022"]
[Site "Chartres"]
[Date "2022.06.12"]
[Round "4.8"]
[White "Schippke, Manon"]
[Black "Barbot, Pierre"]
[Result "1-0"]
[ECO "B30"]
[WhiteElo "2072"]
[BlackElo "2450"]
[Annotator "TA"]
[PlyCount "111"]
[EventDate "2022.06.09"]
[EventType "team-tourn"]
[EventCountry "FRA"]
[SourceTitle "playchess.com"]
[Source "ChessBase"]
[SourceQuality "1"]
[TimeControl "40/5400+30:1800+30"]

{[%evp 9,111,27,31,25,64,43,24,31,7,0,16,-43,-43,-64,-41,-51,-59,-50,-57,-68,-62,-58,-52,-56,-56,-72,-60,-60,7,-7,0,0,0,-50,-43,-59,0,0,119,116,189,187,855,851,844,833,837,814,796,618,612,595,575,447,481,479,478,475,475,458,571,549,750,742,716,715,639,499,498,487,668,668,815,799,783,747,740,716,858,823,1078,1057,1039,1026,1020,1015,1577,1564,1572,1221,1765,1602,6684,6303,29982,29983,29982,29983,29983,29984,29984,29977,29975,29964]} 1. e4 {[%emt 0:00:02]} c5 {[%emt 0:00:08]} 2. Nf3 {[%emt 0:00:04]} Nc6 {[%emt 0:00:04][%cal Bb8c6,Bc6d4,Bd4f3][%mdl 32]} 3. Bb5 {[%emt 0:00:05]} Nf6 {[%emt 0:00:07]} 4. Nc3 {[%emt 0:00:36]} Qc7 {[%emt 0:00:09]} 5. O-O {[%emt 0:03:34]} Nd4 {[%emt 0:01:12]} 6. Re1 {[%emt 0:12:22] B30: Sicilian: 2...Nc6 3 Bb5, lines without ...g6.} Ng4 {[%emt 0:01:01]} 7. e5 {[%emt 0:22:38]} Nxf3+ $1 {[%emt 0:05:46]} 8. Qxf3 {[%emt 0:00:17] White has an edge.} (8. gxf3 Nxe5 9. Ba4 Nc6 $15) 8... Nxe5 {[%emt 0:00:11]} 9. Qg3 {[%emt 0:04:06] [#] Black must now prevent d4.} f6 {[%emt 0:00:21] [#]} 10. f4 $146 {[%emt 0:24:04]} (10. Be2 $11) ({Predecessor:} 10. b4 cxb4 11. Nd5 Qc5 12. Rxe5 fxe5 13. Qxe5 e6 14. Qxe6+ Be7 15. Bb2 Rf8 16. Bxg7 Qxf2+ {1-0 (30) Jones,G (2670)-Martirosyan,H (2617) Chess.com INT 2020}) 10... Nc6 $15 {[%emt 0:07:18]} 11. b3 {[%emt 0:05:14]} b6 {[%emt 0:11:56]} (11... Nb4 $5 {[%cal Rb4c2]} 12. Bd3 Nxd3 13. cxd3 (13. Nd5 Qc6 $17) 13... b6 $15) 12. Bd3 {[%emt 0:01:36][%cal Od3h7]} Bb7 {[%emt 0:04:08]} 13. Nb5 {[%emt 0:00:43]} Qb8 {[%emt 0:00:04]} 14. Bxh7 {[%emt 0:00:21][%cal Oa2a4]} a6 {[%emt 0:10:43]} 15. Bg6+ {[%emt 0:02:52]} Kd8 {[%emt 0:00:05]} 16. Nc3 {[%emt 0:00:10]} e6 {[%emt 0:00:45] Hoping for ...f5.} 17. Bb2 {[%emt 0:03:59][%cal Oc3d5]} Bd6 {[%emt 0:07:19]} 18. Rf1 {[%emt 0:00:06]} Nd4 {[%emt 0:00:38]} ({Black should play} 18... Kc7 $15) 19. Rae1 $1 $11 {[%emt 0:00:21]} Kc7 {[%emt 0:09:21]} 20. Ne4 {[%emt 0:01:57]} Be7 {[%emt 0:03:26]} 21. Bxd4 {[%emt 0:02:12]} ({Better is} 21. f5+ $11 Kd8 22. fxe6) 21... cxd4 $15 {[%emt 0:00:07]} 22. c3 {[%emt 0:00:43]} f5 {[%emt 0:01:42]} (22... dxc3 $15 23. Rc1 (23. Qxc3+ Bc6 $15) 23... Bc6) 23. Ng5 $11 {[%emt 0:00:43]} Qf8 {[%emt 0:05:04]} (23... Bxg5 $11 {keeps the balance.} 24. fxg5+ Kd8) 24. Rxe6 $1 $16 {[%emt 0:01:48] White is more active. White leaves nothing to chance now.} (24. cxd4 $6 Qf6 $11) 24... Rh6 {[%emt 0:01:15]} (24... Bf6 $16 {was necessary.}) 25. cxd4 $18 {[%emt 0:01:10]} Bf6 $2 {[%emt 0:07:32]} (25... Rd8) 26. Rc1+ {[%emt 0:03:08]} Kd8 {[%emt 0:02:50]} 27. Re8+ {[%emt 0:01:20]} ({Weaker is} 27. Qc3 Rc8 28. Rxf6 Qxf6 29. Nf7+ Ke8 30. Re1+ (30. Nxh6+ $2 Qxg6 31. Qe3+ Kd8 $19) (30. Qe3+ Kf8 $11) 30... Kf8 31. Qb4+ (31. Nxh6 Qxg6 32. Qb4+ d6 $15) 31... Kg8 32. Nxh6+ gxh6 $14) 27... Qxe8 {[%emt 0:00:04]} 28. Bxe8 {[%emt 0:00:02]} Kxe8 {[%emt 0:00:05]} 29. Qe3+ {[%emt 0:00:55]} Kf8 {[%emt 0:00:18]} 30. Re1 {[%emt 0:00:02]} Bd5 {[%emt 0:06:40]} 31. Nf3 {[%emt 0:01:23]} Bxf3 {[%emt 0:07:28]} 32. Qxf3 {[%emt 0:00:04]} ({Less strong is} 32. gxf3 Rh4 33. Kh1 Kf7 $18) 32... Bxd4+ {[%emt 0:00:05]} 33. Kf1 {[%emt 0:01:13]} Rd8 {[%emt 0:01:00]} 34. Qd5 {[%emt 0:00:26][%csl LRd4,LRf5]} Bf6 {[%emt 0:00:39]} 35. h3 {[%emt 0:00:44]} g6 {[%emt 0:00:21]} 36. Qd6+ {[%emt 0:00:09]} Kf7 {[%emt 0:00:22]} 37. Qxb6 {[%emt 0:00:28]} Rh4 {[%emt 0:00:06]} 38. Qxa6 {[%emt 0:02:18]} Rxf4+ {[%emt 0:00:06]} 39. Kg1 {[%emt 0:00:02]} Bd4+ {[%emt 0:01:13]} 40. Kh1 {[%emt 0:00:09]} Bf2 {[%emt 0:01:21]} 41. Qd6 {[%emt 0:31:04] Re7+ would kill now.} Bxe1 {[%emt 0:30:49]} 42. Qxf4 {[%emt 0:00:03][%mdl 4096] Endgame KQ-KRB} Re8 {[%emt 0:00:15]} 43. g4 {[%emt 0:01:43]} Re4 {[%emt 0:00:46]} 44. Qd6 {[%emt 0:00:20]} f4 {[%emt 0:00:43]} 45. Qxd7+ {[%emt 0:00:28]} Re7 {[%emt 0:00:35]} 46. Qd5+ {[%emt 0:00:04]} Kf8 {[%emt 0:00:06]} 47. Kg2 {[%emt 0:01:50]} Bg3 {[%emt 0:00:34]} 48. Kf3 {[%emt 0:00:31]} Re1 {[%emt 0:00:05]} 49. Qd3 {[%emt 0:01:00]} Kg7 {[%emt 0:01:32]} 50. a4 {[%emt 0:00:29][%cal Ba2a4,Ba4a5,Ba5a6][%mdl 32]} Rh1 {[%emt 0:00:18]} 51. a5 {[%emt 0:00:40] White threatens g5 and mate.} Rxh3 {[%emt 0:00:04]} 52. Qd7+ {[%emt 0:00:03] White mates.} Kf8 {[%emt 0:00:32]} 53. g5 {[%emt 0:00:17]} Rh1 {[%emt 0:00:55]} 54. a6 {[%emt 0:00:26]} Rf1+ {[%emt 0:00:05]} 55. Ke2 {[%emt 0:00:26]} Re1+ {[%emt 0:00:07] [#]} 56. Kd3 $1 {[%emt 0:00:04] Weighted Error Value: White=0.24 (precise) /Black=0.34} 1-0

[Event "FRA-ch Teams Top 16-A 2022"]
[Site "Chartres"]
[Date "2022.06.12"]
[Round "4.9"]
[White "Alonso Rosell, Alvar"]
[Black "Jones, Gawain C B"]
[Result "1-0"]
[ECO "E71"]
[WhiteElo "2557"]
[BlackElo "2669"]
[Annotator "TA"]
[PlyCount "79"]
[EventDate "2022.06.09"]
[EventType "team-tourn"]
[EventCountry "FRA"]
[SourceTitle "playchess.com"]
[Source "ChessBase"]
[SourceQuality "1"]
[TimeControl "40/5400+30:1800+30"]

{[%evp 13,79,31,31,34,34,31,51,1,44,58,60,51,55,55,47,49,47,15,21,22,15,16,12,0,27,28,27,15,21,25,25,21,24,8,50,47,51,45,306,295,304,294,295,269,285,297,558,539,538,560,679,667,652,646,638,602,712,700,685,654,714,713,701,704,677,693,664,631]} 1. d4 {[%emt 0:00:03]} Nf6 {[%emt 0:00:42]} 2. c4 {[%emt 0:00:04]} g6 {[%emt 0:00:09]} 3. Nc3 {[%emt 0:00:03]} Bg7 {[%emt 0:00:06]} 4. e4 {[%emt 0:00:03]} d6 {[%emt 0:00:05]} 5. h3 {[%emt 0:00:04]} O-O {[%emt 0:00:08]} 6. Be3 {[%emt 0:00:03]} e5 {[%emt 0:00:09]} 7. d5 {[%emt 0:00:04]} Na6 {[%emt 0:00:04]} 8. Be2 {[%emt 0:00:07] [#] E71: King's Indian: 4 e4 d6 5 h3.} Ne8 $146 {[%emt 0:02:02]} ({Predecessor:} 8... Nc5 9. Qc2 a5 10. g4 c6 11. Nf3 cxd5 12. cxd5 Re8 13. Nd2 b6 14. a3 Re7 {1-0 (52) Sarana,A (2685)-Ganerdene,S (2419) Chess.com INT 2022}) 9. Nf3 {[%emt 0:00:47]} f5 {[%emt 0:01:30]} 10. g4 {[%emt 0:00:09]} (10. a3 $14) 10... Nf6 {[%emt 0:10:53]} (10... f4 $5 {[%cal Rf4e3]} 11. Bd2 Nf6 $11) 11. gxf5 {[%emt 0:40:23]} gxf5 {[%emt 0:00:16]} 12. exf5 {[%emt 0:00:07]} Bxf5 {[%emt 0:00:31]} 13. Nh4 {[%emt 0:03:31]} Bd7 {[%emt 0:01:18]} 14. Rg1 {[%emt 0:00:30]} Kh8 {[%emt 0:01:30]} 15. Qc2 {[%emt 0:05:37] Threatening 0-0-0.} Nb4 {[%emt 0:06:43]} 16. Qb3 {[%emt 0:10:40]} Nfxd5 {[%emt 0:11:47]} 17. Ng6+ {[%emt 0:28:43]} hxg6 {[%emt 0:00:07]} 18. cxd5 {[%emt 0:00:03]} a5 {[%emt 0:08:17]} 19. a3 {[%emt 0:00:51]} Na6 {[%emt 0:00:39]} 20. Rxg6 {[%emt 0:01:06] aiming for Qc4.} (20. Qxb7 Nc5 21. Bxc5 dxc5 $17) 20... Qh4 {[%emt 0:10:53]} 21. O-O-O {[%emt 0:01:15] Threatens to win with Rdg1.} ({Not} 21. Qxb7 $2 Rfb8 22. Qxa8 Rxa8 $17) 21... Nc5 $1 {[%emt 0:09:54]} 22. Qc4 {[%emt 0:02:30] Really sharp!} ({Much worse is} 22. Bxc5 dxc5 23. Bg4 Be8 $17) 22... Qxc4 {[%emt 0:05:53]} (22... Qxh3 $2 23. Rdg1 b5 24. Nxb5 $18) 23. Bxc4 {[%emt 0:00:03] Hoping for Bxc5.} Be8 {[%emt 0:01:40]} 24. Rg3 {[%emt 0:02:32]} Bh5 {[%emt 0:04:38]} 25. Rdg1 {[%emt 0:00:13]} Rf7 {[%emt 0:00:19][%mdl 8192] Black cannot hold the game after this.} (25... Bf6 $14) 26. Bxc5 $18 {[%emt 0:03:05]} dxc5 {[%emt 0:00:06]} 27. d6 $1 {[%emt 0:00:03]} Bh6+ {[%emt 0:02:33]} 28. Kb1 {[%emt 0:00:38]} Rd7 {[%emt 0:03:38] [#]} 29. Ne4 {[%emt 0:00:39] Rg8+ would kill now.} Rg7 {[%emt 0:03:15] Inhibits Rg8+.} (29... Rxd6 30. Nxd6 cxd6 31. Rg8+ Rxg8 32. Rxg8+ Kh7) 30. dxc7 {[%emt 0:00:31] White is clearly winning.} Rc8 {[%emt 0:00:10]} 31. Nf6 {[%emt 0:00:16]} Bf3 {[%emt 0:00:15]} 32. Rxg7 {[%emt 0:01:01]} Bxg7 {[%emt 0:00:02] [#]} 33. Rxg7 {[%emt 0:00:37][%mdl 512]} Kxg7 {[%emt 0:00:12][%mdl 4096] Endgame KRB-KBN} 34. Be6 {[%emt 0:00:04]} Rh8 {[%emt 0:05:42]} 35. Ng4 {[%emt 0:00:24]} Bg2 {[%emt 0:00:05]} 36. Ne3 {[%emt 0:00:23]} Be4+ {[%emt 0:00:30]} 37. Kc1 {[%emt 0:00:06]} b5 {[%emt 0:01:52]} 38. c8=Q {[%emt 0:00:11]} Rxc8 {[%emt 0:00:25]} 39. Bxc8 {[%emt 0:00:02]} Bc6 {[%emt 0:00:05]} 40. Ng4 {[%emt 0:00:35] Weighted Error Value: White=0.03 (flawless) /Black=0.37} 1-0

[Event "FRA-ch Teams Top 16-A 2022"]
[Site "Chartres"]
[Date "2022.06.12"]
[Round "4.10"]
[White "Grandelius, Nils"]
[Black "Relange, Eloi"]
[Result "1-0"]
[ECO "C41"]
[WhiteElo "2635"]
[BlackElo "2456"]
[Annotator "TA"]
[PlyCount "125"]
[EventDate "2022.06.09"]
[EventType "team-tourn"]
[EventCountry "FRA"]
[SourceTitle "playchess.com"]
[Source "ChessBase"]
[SourceQuality "1"]
[TimeControl "40/5400+30:1800+30"]

{[%evp 9,125,25,36,32,23,30,38,29,27,33,29,30,47,37,37,34,39,35,33,39,39,36,40,33,56,31,58,21,59,40,70,50,62,54,91,71,72,73,78,66,99,98,91,68,129,137,139,145,162,138,187,203,216,220,214,197,219,214,202,216,205,195,302,352,331,303,411,408,379,113,113,120,159,118,112,47,52,18,109,118,206,187,193,196,187,194,207,152,158,167,178,185,160,158,197,177,198,106,109,97,164,165,346,239,353,343,285,214,428,329,425,388,5128,5102,4670,4531,1250,860]} 1. e4 {[%emt 0:00:22]} d6 {[%emt 0:00:37]} 2. d4 {[%emt 0:00:43]} Nf6 {[%emt 0:00:07]} 3. Nc3 {[%emt 0:00:03]} e5 {[%emt 0:00:05]} 4. Nf3 {[%emt 0:01:35]} Nbd7 {[%emt 0:00:12]} 5. Rg1 {[%emt 0:01:05]} g6 {[%emt 0:08:36]} 6. Be3 {[%emt 0:02:35] C41: Philidor Defence.} Bg7 {[%emt 0:05:30]} 7. dxe5 {[%emt 0:01:07]} dxe5 {[%emt 0:00:46]} 8. g4 {[%emt 0:00:16][%cal Bg2g4,Bg4g5][%mdl 32] White is slightly better.} O-O {[%emt 0:01:15]} 9. Qd2 {[%emt 0:00:37]} c6 {[%emt 0:18:13]} 10. O-O-O {[%emt 0:01:28][%cal Of3e5]} Qe7 {[%emt 0:00:08]} 11. g5 {[%emt 0:02:44]} Nh5 {[%emt 0:00:58] [#]} 12. Qd6 $146 {[%emt 0:00:04]} ({Predecessor:} 12. Bh3 Nc5 13. Bxc8 Rfxc8 14. Qd6 Qxd6 15. Rxd6 Ne6 16. Rd7 Rcb8 17. Rgd1 Nhf4 18. Re7 Bf8 19. Red7 Bg7 20. Re7 Bf8 {½-½ (20) Marzano,C (2201)-Kireev,A (2396) Olomouc 2005}) 12... Qxd6 {[%emt 0:05:09]} 13. Rxd6 {[%emt 0:00:09]} Nf4 {[%emt 0:00:47]} 14. h4 {[%emt 0:08:30]} Re8 {[%emt 0:02:29]} 15. Rd1 {[%emt 0:04:24]} Nb6 {[%emt 0:16:12]} 16. Nd2 {[%emt 0:33:39][%cal Bf3d2,Bd2b3,Bb3a5][%mdl 32]} Bf8 {[%emt 0:00:59]} 17. Nb3 {[%emt 0:05:22]} Ne6 {[%emt 0:06:12]} 18. a3 {[%emt 0:04:33]} Nd7 {[%emt 0:02:39]} 19. Na5 {[%emt 0:03:10][%cal Oa5b7]} Nd4 {[%emt 0:04:12]} 20. Ne2 {[%emt 0:06:50]} c5 {[%emt 0:02:08]} 21. Nc3 {[%emt 0:07:26] Black must now prevent Nd5.} b6 {[%emt 0:05:02]} 22. Nb3 {[%emt 0:00:03]} Bb7 {[%emt 0:01:04]} 23. Nd2 {[%emt 0:00:02]} a6 {[%emt 0:03:33]} 24. Nd5 {[%emt 0:02:41] Strongly threatening Nc7.} Bxd5 {[%emt 0:00:19]} 25. exd5 {[%emt 0:00:03]} e4 {[%emt 0:00:27]} 26. Re1 {[%emt 0:04:15]} (26. h5 {keeps more tension.} Kg7 27. Bh3 Rad8 28. Kb1) 26... f5 {[%emt 0:05:28]} (26... Nf5 $14) 27. gxf6 $1 $16 {[%emt 0:00:46]} Nxf6 {[%emt 0:00:06]} 28. Bg5 $1 {[%emt 0:01:23]} Bg7 {[%emt 0:04:14]} 29. Bg2 {[%emt 0:00:22]} Nf5 {[%emt 0:04:12]} (29... Kf7 $16 30. c3 (30. Bxe4 Nxe4 31. Nxe4 Kg8 $16) 30... Nf5 31. Nxe4 (31. Bxe4 Nxe4 32. Rxe4 h6 $16) 31... Nxe4) 30. Nxe4 $18 {[%emt 0:00:57]} (30. Bxe4 $6 Nxe4 31. Rxe4 (31. Nxe4 h6 $14) 31... Bd4 $16) 30... Nxe4 {[%emt 0:00:14]} 31. Bxe4 {[%emt 0:01:59] A strong pair of Bishops.} Nd6 {[%emt 0:00:07]} 32. Bg2 {[%emt 0:01:11]} Bd4 {[%emt 0:00:11]} 33. Re6 {[%emt 0:01:23]} Bxf2 {[%emt 0:01:11]} 34. Rf1 {[%emt 0:00:02]} (34. Rxd6 Bxg1 35. Rxb6 Be3+ 36. Bxe3 Rxe3 $11) 34... Bg3 {[%emt 0:00:09]} 35. h5 {[%emt 0:04:41]} Rxe6 {[%emt 0:01:03]} (35... gxh5 {might work better.} 36. Be7 Ra7 37. Bxd6 Rxe6 38. Rf8+ (38. Bxg3 Rg6 $16) 38... Kg7 39. Bxg3 Rg6) 36. dxe6 {[%emt 0:00:05]} Rf8 {[%emt 0:00:15]} 37. Rd1 {[%emt 0:01:24]} Rf5 {[%emt 0:02:55]} 38. Be7 {[%emt 0:00:01]} Nc4 {[%emt 0:01:00]} 39. Rd7 $2 {[%emt 0:00:58]} (39. Rd8+ $18 {has better winning chances.} Kg7 40. h6+ Kxh6 41. Bf8+ Kg5 42. e7) 39... Re5 $16 {[%emt 0:00:29]} 40. Kb1 $1 {[%emt 0:00:52] Intending Bf6 and mate.} Ne3 {[%emt 0:00:44]} 41. Bh3 {[%emt 0:11:27]} Nf5 {[%emt 0:07:55]} 42. Bg5 {[%emt 0:09:29] White is more active.} (42. Rd8+ $1 $16 Kg7 43. Bg5 (43. Bf8+ Kf6 $11) 43... Rxe6 44. h6+ Kf7 45. Rh8) 42... Rxe6 $14 {[%emt 0:01:37]} 43. h6 {[%emt 0:00:07]} Re1+ {[%emt 0:02:12]} (43... Re2 $11) 44. Ka2 $16 {[%emt 0:00:02]} Bh4 {[%emt 0:02:34]} (44... Re8 $16) 45. Bxh4 $18 {[%emt 0:03:06]} Nxh4 {[%emt 0:00:08][%mdl 4096] Endgame KRB-KRN} 46. Rg7+ $1 {[%emt 0:00:01][%mdl 64] Deflection} Kf8 {[%emt 0:06:30] Threatens to win with ...Re7.} ({Weaker is} 46... Kh8 47. Rb7 Kg8 48. Rxb6) 47. Rxh7 {[%emt 0:00:02] And now Rh8+ would win.} Nf5 {[%emt 0:01:36]} 48. Rb7 {[%emt 0:00:36]} Nxh6 {[%emt 0:01:57]} 49. Rxb6 {[%emt 0:00:01]} Kg7 {[%emt 0:00:07]} 50. Rxa6 {[%emt 0:00:11]} g5 {[%emt 0:00:05]} 51. Ra4 {[%emt 0:02:50] Prevents g4.} Kf6 {[%emt 0:01:18] [#]} 52. Rc4 $1 {[%emt 0:00:29]} Re5 {[%emt 0:00:58] [#]} 53. b4 {[%emt 0:04:28]} (53. a4 $1 $18) 53... cxb4 $16 {[%emt 0:01:01]} 54. axb4 {[%emt 0:00:02] aiming for Rc6+.} Ke7 {[%emt 0:01:20]} (54... Nf5 $16) 55. Rc7+ $18 {[%emt 0:01:34]} Kd6 $2 {[%emt 0:01:02]} (55... Ke8 {was necessary.} 56. Rh7 Ng8) 56. Rd7+ {[%emt 0:00:53]} Kc6 {[%emt 0:00:09]} 57. Rh7 {[%emt 0:00:12]} Ng8 {[%emt 0:00:06]} 58. Bg2+ {[%emt 0:00:50]} Kb6 $2 {[%emt 0:00:27]} (58... Kd6 {is a better defense.} 59. Kb3 Re3+ 60. c3 Rg3) 59. Rb7+ {[%emt 0:01:39]} Ka6 {[%emt 0:00:05]} 60. Kb3 {[%emt 0:00:24] Threatening mate with Ka4.} Ne7 $2 {[%emt 0:00:48]} (60... Re7 61. Rb8 Nf6) 61. Ka4 {[%emt 0:00:53] White wants to mate with b5+. White is clearly winning.} Nd5 {[%emt 0:00:38]} 62. Bxd5 {[%emt 0:00:19]} Rxd5 {[%emt 0:00:03]} 63. Rg7 {[%emt 0:00:06] Weighted Error Value: White=0.17 (very precise) /Black=0.25 (precise)} 1-0

[Event "FRA-ch Teams Top 16-A 2022"]
[Site "Chartres"]
[Date "2022.06.12"]
[Round "4.11"]
[White "Iglesias, Yosha"]
[Black "Edouard, Romain"]
[Result "0-1"]
[ECO "A37"]
[WhiteElo "2202"]
[BlackElo "2575"]
[Annotator "TA"]
[PlyCount "80"]
[EventDate "2022.06.09"]
[EventType "team-tourn"]
[EventCountry "FRA"]
[SourceTitle "playchess.com"]
[Source "ChessBase"]
[SourceQuality "1"]
[TimeControl "40/5400+30:1800+30"]

{[%evp 14,80,18,0,0,0,0,-8,0,-20,-8,-31,-25,-27,-11,-16,-11,-14,0,-45,-33,-64,-74,-78,-77,-60,8,-119,-113,-116,-103,-113,-98,-92,-32,-74,-60,-68,-71,-124,-120,-412,-410,-395,-410,-345,-297,-287,-252,-252,-250,-213,-244,-276,-84,-397,-432,-401,-225,-375,-379,-1518,-763,-29996,-29997,-29997,-29998,-29998,-29999]} 1. Nf3 {[%emt 0:00:05]} c5 {[%emt 0:00:16]} 2. g3 {[%emt 0:00:30]} Nc6 {[%emt 0:00:13]} 3. Bg2 {[%emt 0:00:44]} e5 {[%emt 0:00:14]} 4. c4 {[%emt 0:02:34]} g6 {[%emt 0:00:06]} 5. Nc3 {[%emt 0:00:10]} Bg7 {[%emt 0:00:06]} 6. a3 {[%emt 0:02:04]} Nge7 {[%emt 0:00:11]} 7. d3 {[%emt 0:02:32]} d6 {[%emt 0:00:12]} 8. O-O {[%emt 0:00:16]} O-O {[%emt 0:00:04] A37: Symmetrical English vs ...g6: 4 Bg2 Bg7 5 Nf3.} 9. Bg5 {[%emt 0:01:20]} f6 {[%emt 0:00:08]} 10. Be3 {[%emt 0:00:30]} Be6 {[%emt 0:03:03] The position is equal.} 11. Ne1 {[%emt 0:02:06][%cal Ob2b4,Bf3e1,Be1c2,Bc2e3][%mdl 32]} Qd7 {[%emt 0:01:00]} 12. Nc2 {[%emt 0:00:10]} Bh3 {[%emt 0:00:31]} 13. b4 {[%emt 0:10:57]} Bxg2 {[%emt 0:00:20]} 14. Kxg2 {[%emt 0:00:06]} b6 {[%emt 0:00:03] [#]} 15. f3 $146 {[%emt 0:04:11]} ({Predecessor:} 15. bxc5 bxc5 16. Rb1 Rab8 17. Qd2 Rxb1 18. Rxb1 Rb8 19. Qc1 Qd8 20. Bd2 a6 21. e4 Kf7 22. Ne3 Bh6 23. Rb2 {½-½ (23) El Debs,F (2502)-Di Berardino,D (2491) Americana 2010}) 15... h5 {[%emt 0:08:59]} 16. Bf2 {[%emt 0:02:20]} f5 {[%emt 0:00:13][%cal Oe5e4,Bf6f5,Bf5f4][%mdl 32]} 17. Ne3 {[%emt 0:00:49]} e4 $1 {[%emt 0:01:06]} 18. Rc1 {[%emt 0:22:03]} f4 {[%emt 0:01:05]} 19. Ned5 {[%emt 0:00:31]} e3 {[%emt 0:05:16]} ({Black should play} 19... Bxc3 $15 20. Nxc3 exf3+ 21. exf3 cxb4 22. axb4 Nxb4) 20. b5 {[%emt 0:02:31]} (20. Be1 $11) 20... Nxd5 $17 {[%emt 0:02:24] Dancing on a razor blade.} ({Don't play} 20... exf2 21. bxc6 Nxc6 22. Nxf4 $14) (20... Nd4 $6 21. Be1 $11) 21. Nxd5 {[%emt 0:01:45]} Ne7 {[%emt 0:00:06]} 22. Nxe7+ {[%emt 0:01:05]} Qxe7 {[%emt 0:00:02]} 23. Be1 {[%emt 0:00:51]} a6 {[%emt 0:00:23] Black is much more active.} (23... g5 $17) 24. gxf4 {[%emt 0:06:13]} axb5 {[%emt 0:00:35]} 25. Qb3 {[%emt 0:04:53]} bxc4 {[%emt 0:03:24]} 26. Rxc4 {[%emt 0:04:30] Black converts the advantage convincingly.} (26. dxc4 $142 Rxf4 27. Kh1) 26... d5 $36 {[%emt 0:00:47][%mdl 2048] Keeping White busy.} 27. Re4 {[%emt 0:06:22][%mdl 8192]} (27. Rc1 $17 Qd8 28. Rb1) 27... c4 $1 $19 {[%emt 0:05:07] White must now prevent ...Qxe4.} 28. Rxe7 {[%emt 0:00:23]} cxb3 {[%emt 0:00:02]} 29. Bb4 {[%emt 0:02:15]} Rfc8 {[%emt 0:00:37]} ({And not} 29... Rxf4 30. Bd6 Rf5 31. Rb1 $17) 30. Rb1 {[%emt 0:03:24]} Rc2 {[%emt 0:00:33]} 31. Rxb3 {[%emt 0:03:39]} Rxe2+ {[%emt 0:00:09]} 32. Kg3 {[%emt 0:00:23][%cal Od3d4] [#]} Rc8 $1 {[%emt 0:09:00]} 33. f5 {[%emt 0:14:48]} gxf5 {[%emt 0:04:16]} (33... Bf6 $19 {and Black stays clearly on top.} 34. Re6 Kf7) 34. Bd6 $2 {[%emt 0:00:00][%mdl 8192]} (34. Rb1 $17 {is a better chance.}) 34... Rc6 {[%emt 0:05:33]} 35. Be5 {[%emt 0:00:00]} Bf8 {[%emt 0:04:40]} (35... Bh6 $142 {[%cal Of5f4] Strongly threatening ...f4+!} 36. Rc3 Rxc3 37. Bxc3 {[#]} Rd2 $1 {[%mdl 512]}) 36. Rd7 {[%emt 0:00:00]} (36. Rb7 {was necessary.}) 36... Rf2 {[%emt 0:06:27]} 37. d4 $2 {[%emt 0:00:00]} (37. Rb1 Rg6+ 38. Kf4) 37... Bh6 {[%emt 0:03:14][%cal Of5f4] ( -> ...f4+!)} 38. f4 {[%emt 0:00:52]} Rg6+ {[%emt 0:00:07] Black mates.} 39. Kh3 {[%emt 0:00:04]} Rf3+ {[%emt 0:00:04]} 40. Kh4 {[%emt 0:00:04]} Rg4+ {[%emt 0:00:02] Weighted Error Value: White=1.05/Black=0.29 (precise)} 0-1